fUST/lending_fUST_20250902
["ID","MTS","AMOUNT","RATE_DAILY","PERIOD"]
[383025158,1756816240782,-480.0,0.00013698,2]
[383025159,1756816240792,-480.0,0.00013698,2]
[383025160,1756816240802,-480.0,0.00013698,2]
[383025161,1756816240811,-480.0,0.00013698,2]
[383025162,1756816240821,-480.0,0.00013698,2]
[383025163,1756816240830,-480.0,0.00013698,2]
[383025164,1756816240840,-483.03,0.00013698,2]
[383025165,1756816240849,-480.0,0.00013698,2]
[383025166,1756816240858,-530.78323128,0.00013698,2]
[383025167,1756816240870,-480.0,0.00013698,2]
[383025168,1756816240879,-480.0,0.00013698,2]
[383025169,1756816240889,-480.0,0.00013698,2]
[383025170,1756816240899,-177.92,0.00013698,2]
[383025171,1756816240909,-480.0,0.00013698,2]
[383025172,1756816240918,-480.0,0.00013698,2]
[383025173,1756816240928,-480.0,0.00013698,2]
[383025174,1756816240937,-480.0,0.00013698,2]
[383025175,1756816240947,-480.0,0.00013698,2]
[383025176,1756816240957,-480.0,0.00013698,2]
[383025177,1756816240966,-480.0,0.00013698,2]
[383025178,1756816240976,-480.0,0.00013698,2]
[383025179,1756816240986,-480.0,0.00013698,2]
[383025180,1756816240996,-480.0,0.00013698,2]
[383025181,1756816241006,-480.0,0.00013698,2]
[383025182,1756816241016,-480.0,0.00013698,2]
[383025183,1756816241026,-480.0,0.00013698,2]
[383025184,1756816241036,-480.0,0.00013698,2]
[383025185,1756816241045,-480.0,0.00013698,2]
[383025186,1756816241054,-480.0,0.00013698,2]
[383025187,1756816241063,-480.0,0.00013698,2]
[383025188,1756816241072,-480.0,0.00013698,2]
[383025189,1756816241081,-480.0,0.00013698,2]
[383025190,1756816241090,-480.0,0.00013698,2]
[383025191,1756816241099,-343.57,0.00013698,2]
[383025192,1756816241108,-515.41,0.00013698,2]
[383025193,1756816241118,-1749.04,0.00013698,2]
[383025194,1756816241127,-480.0,0.00013698,2]
[383025195,1756816241137,-480.0,0.00013698,2]
[383025196,1756816241146,-480.0,0.00013698,2]
[383025197,1756816241156,-480.0,0.00013698,2]
[383025198,1756816241165,-480.0,0.00013698,2]
[383025199,1756816241175,-480.0,0.00013698,2]
[383025200,1756816241186,-480.0,0.00013698,2]
[383025201,1756816241196,-480.0,0.00013698,2]
[383025202,1756816241206,-480.0,0.00013698,2]
[383025203,1756816241216,-480.0,0.00013698,2]
[383025204,1756816241226,-499.02,0.00013698,2]
[383025205,1756816241235,-480.0,0.00013698,2]
[383025206,1756816241244,-480.0,0.00013698,2]
[383025207,1756816241253,-615.25,0.00013698,2]
[383025208,1756816241266,-608.83,0.00013698,2]
[383025209,1756816241275,-480.0,0.00013698,2]
[383025210,1756816241285,-1188.6,0.00013698,2]
[383025211,1756816241294,-480.0,0.00013698,2]
[383025212,1756816241304,-480.0,0.00013698,2]
[383025213,1756816241313,-480.0,0.00013698,2]
[383025214,1756816241323,-625.51,0.00013698,2]
[383025215,1756816241332,-480.0,0.00013698,2]
[383025216,1756816241342,-291.82,0.00013698,2]
[383025217,1756816241351,-480.0,0.00013698,2]
[383025218,1756816241360,-1250.54,0.00013698,2]
[383025219,1756816241369,-480.0,0.00013698,2]
[383025220,1756816241379,-480.0,0.00013698,2]
[383025221,1756816241389,-480.0,0.00013698,2]
[383025222,1756816241398,-4820.8811575,0.00013698,2]
[383025223,1756816241408,-480.0,0.00013698,2]
[383025224,1756816241418,-480.0,0.00013698,2]
[383025225,1756816241427,-480.0,0.00013698,2]
[383025226,1756816241436,-480.0,0.00013698,2]
[383025227,1756816241446,-480.0,0.00013698,2]
[383025228,1756816241455,-480.0,0.00013698,2]
[383025229,1756816241464,-480.0,0.00013698,2]
[383025230,1756816241474,-480.0,0.00013698,2]
[383025231,1756816241483,-480.0,0.00013698,2]
[383025232,1756816241491,-515.04,0.00013698,2]
[383025233,1756816241501,-480.0,0.00013698,2]
[383025234,1756816241512,-480.0,0.00013698,2]
[383025235,1756816241521,-486.39,0.00013698,2]
[383025236,1756816241531,-480.0,0.00013698,2]
[383025237,1756816241540,-307.83582877,0.00013698,2]
[383025238,1756816241698,-172.16417123,0.00013698,2]
[383025239,1756816241707,-480.0,0.00013698,2]
[383025240,1756816241716,-480.0,0.00013698,2]
[383025241,1756816241726,-713.32,0.00013698,2]
[383025242,1756816241735,-480.0,0.00013698,2]
[383025243,1756816241744,-480.0,0.00013698,2]
[383025244,1756816241754,-500.75558228,0.00013698,2]
[383025245,1756816241765,-569.11283263,0.00013698,2]
[383025246,1756816241775,-480.0,0.00013698,2]
[383025247,1756816241784,-480.0,0.00013698,2]
[383025248,1756816241794,-480.0,0.00013698,2]
[383025249,1756816241803,-480.0,0.00013698,2]
[383025250,1756816241812,-480.0,0.00013698,2]
[383025251,1756816241821,-480.0,0.00013698,2]
[383025252,1756816241831,-480.0,0.00013698,2]
[383025253,1756816241840,-480.0,0.00013698,2]
[383025254,1756816241850,-480.0,0.00013698,2]
[383025255,1756816241859,-480.0,0.00013698,2]
[383025256,1756816241872,-480.0,0.00013698,2]
[383025257,1756816241881,-256.31256069,0.00013698,2]
[383025283,1756816263369,300.0,0.00013697,2]
[383025284,1756816263761,3672.01910274,0.00013561,2]
[383025285,1756816283599,500.0,0.00013697,2]
[383025286,1756816283794,500.0,0.00013697,2]
[383025291,1756816399109,580.37649061,0.00013598,2]
[383025292,1756816502541,1200.0,0.00013697,2]
[383025294,1756816680087,507.82942924,0.00013598,2]
[383025295,1756816970863,444.35075062,0.00013598,2]
[383025296,1756817102417,300.0,0.00013697,2]
[383025297,1756817102467,300.0,0.00013697,2]
[383025298,1756817102519,192.0,0.00013697,2]
[383025299,1756817102971,1200.0,0.00013697,2]
[383025300,1756817103084,300.0,0.00013697,2]
[383025301,1756817162982,1000.0,0.00027,120]
[383025302,1756817200416,1000.0,0.000136,2]
[383025303,1756817225125,-480.0,0.00013698,2]
[383025304,1756817225149,-172.14,0.00013698,2]
[383025305,1756817225171,-480.0,0.00013698,2]
[383025306,1756817225192,-480.0,0.00013698,2]
[383025307,1756817225212,-540.73821797,0.00013698,2]
[383025308,1756817255615,388.80690674,0.00013598,2]
[383025349,1756817432502,-227.41,0.00013698,2]
[383025399,1756817433017,-282.71877852,0.00013698,2]
[383025401,1756817433030,-197.28122148,0.00013698,2]
[383025403,1756817433039,-447.71877851,0.00013698,2]
[383025405,1756817433051,-32.28122149,0.00013698,2]
[383025407,1756817433062,-490.4331105,0.00013698,2]
[383025408,1756817433072,-480.0,0.00013698,2]
[383025410,1756817433081,-83.08566801,0.00013698,2]
[383025415,1756817436829,-142.36433199,0.00013698,2]
[383025416,1756817436839,-305.47,0.00013698,2]
[383025417,1756817436850,-480.0,0.00013698,2]
[383025418,1756817436861,-288.15712459,0.00013698,2]
[383025441,1756817438296,-191.84287541,0.00013698,2]
[383025443,1756817438306,-178.70108818,0.00013698,2]
[383025454,1756817440680,-292.03887782,0.00013698,2]
[383025466,1756817443946,-97.320034,0.00013698,2]
[383025467,1756817443957,-291.28768139,0.00013698,2]
[383025480,1756817446802,-188.71231861,0.00013698,2]
[383025481,1756817446813,-340.24,0.00013698,2]
[383025482,1756817446822,-61.12079189,0.00013698,2]
[383025483,1756817446983,-418.87920811,0.00013698,2]
[383025484,1756817446993,-480.0,0.00013698,2]
[383025485,1756817447002,-421.65,0.00013698,2]
[383025486,1756817447011,-480.0,0.00013698,2]
[383025487,1756817447021,-59.83079189,0.00013698,2]
[383025488,1756817463421,300.0,0.00013697,2]
[383025489,1756817522458,250.0,0.00013697,2]
[383025490,1756817538338,998.40255591,0.00013697,2]
[383025491,1756817548016,340.20604345,0.00013598,2]
[383025493,1756817702520,294.0,0.00013697,2]
[383025494,1756817702585,300.0,0.00013697,2]
[383025495,1756817702651,300.0,0.00013697,2]
[383025496,1756817702724,300.0,0.00013697,2]
[383025497,1756817703459,1200.0,0.00013697,2]
[383025498,1756817726627,500.0,0.0001369,2]
[383025499,1756817727393,500.0,0.0001369,2]
[383025500,1756817728177,500.0,0.0001369,2]
[383025501,1756817729284,500.0,0.0001369,2]
[383025502,1756817730078,500.0,0.0001369,2]
[383025503,1756817730898,500.0,0.0001369,2]
[383025504,1756817731670,500.0,0.0001369,2]
[383025505,1756817739207,500.0,0.0001369,2]
[383025506,1756817828365,297.68028801,0.00013598,2]
[383025507,1756817850109,304.85681,0.00012901,2]
[383025508,1756818114850,260.470252,0.00013598,2]
[383025519,1756818272572,534.3220798,0.00013697,2]
[383025520,1756818272616,500.0,0.00013697,2]
[383025521,1756818272659,500.0,0.00013697,2]
[383025522,1756818272711,500.0,0.00013697,2]
[383025523,1756818272817,500.0,0.00013697,2]
[383025524,1756818272909,500.0,0.00013697,2]
[383025525,1756818272979,500.0,0.00013697,2]
[383025526,1756818273039,500.0,0.00013697,2]
[383025527,1756818273106,500.0,0.00013697,2]
[383025528,1756818273170,446.50671707,0.00013697,2]
[383025529,1756818273332,500.0,0.00013697,2]
[383025530,1756818273469,500.0,0.00013697,2]
[383025531,1756818273543,500.0,0.00013697,2]
[383025532,1756818289150,600.0,0.00013697,2]
[383025533,1756818394960,227.9114705,0.00013598,2]
[383025535,1756818445097,-1315.7015245,0.00013698,2]
[383025536,1756818445118,-46.44575969,0.00013698,2]
[383025537,1756818494566,168.0,0.00013632,2]
[383025576,1756818632898,-104.55424031,0.00013698,2]
[383025577,1756818632908,-182.25932386,0.00013698,2]
[383025599,1756818638517,-297.74067614,0.00013698,2]
[383025600,1756818638527,-503.31111337,0.00013698,2]
[383025601,1756818638537,-480.0,0.00013698,2]
[383025602,1756818638547,-480.0,0.00013698,2]
[383025603,1756818638557,-500.0,0.00013698,2]
[383025604,1756818638568,-500.0,0.00013698,2]
[383025605,1756818638577,-500.0,0.00013698,2]
[383025606,1756818638587,-480.0,0.00013698,2]
[383025607,1756818638597,-581.43,0.00013698,2]
[383025608,1756818638607,-480.0,0.00013698,2]
[383025609,1756818638616,-480.0,0.00013698,2]
[383025610,1756818638629,-480.0,0.00013698,2]
[383025611,1756818638640,-480.0,0.00013698,2]
[383025612,1756818638649,-270.60387828,0.00013698,2]
[383025613,1756818638659,-191.84287541,0.00013698,2]
[383025614,1756818638668,-504.38,0.00013698,2]
[383025615,1756818638678,-178.70108818,0.00013698,2]
[383025616,1756818638687,-223.32,0.00013698,2]
[383025617,1756818638697,-279.56195978,0.00013698,2]
[383025619,1756818638706,-566.98141208,0.00013698,2]
[383025620,1756818638716,-480.0,0.00013698,2]
[383025621,1756818638725,-469.03,0.00013698,2]
[383025622,1756818638735,-480.0,0.00013698,2]
[383025623,1756818638744,-151.0,0.00013698,2]
[383025624,1756818638753,-151.0,0.00013698,2]
[383025626,1756818638762,-151.0,0.00013698,2]
[383025627,1756818638771,-151.0,0.00013698,2]
[383025628,1756818638780,-151.0,0.00013698,2]
[383025629,1756818638789,-151.0,0.00013698,2]
[383025630,1756818638798,-151.0,0.00013698,2]
[383025631,1756818638807,-235.753364,0.00013698,2]
[383025632,1756818638816,-480.0,0.00013698,2]
[383025633,1756818638825,-420.99152765,0.00013698,2]
[383025634,1756818638834,-480.0,0.00013698,2]
[383025635,1756818638843,-503.86,0.00013698,2]
[383025636,1756818638851,-480.0,0.00013698,2]
[383025637,1756818639022,-480.0,0.00013698,2]
[383025638,1756818639031,-480.0,0.00013698,2]
[383025639,1756818639041,-480.0,0.00013698,2]
[383025640,1756818639051,-356.05,0.00013698,2]
[383025641,1756818639060,-480.0,0.00013698,2]
[383025642,1756818639071,-480.0,0.00013698,2]
[383025643,1756818639080,-480.0,0.00013698,2]
[383025644,1756818639089,-480.0,0.00013698,2]
[383025645,1756818639099,-480.0,0.00013698,2]
[383025646,1756818639108,-480.0,0.00013698,2]
[383025647,1756818639118,-474.17441139,0.00013698,2]
[383025648,1756818639127,-480.0,0.00013698,2]
[383025649,1756818639137,-480.0,0.00013698,2]
[383025650,1756818639146,-480.0,0.00013698,2]
[383025651,1756818639155,-480.0,0.00013698,2]
[383025652,1756818639164,-480.0,0.00013698,2]
[383025653,1756818639174,-480.0,0.00013698,2]
[383025654,1756818639183,-480.0,0.00013698,2]
[383025655,1756818639193,-480.0,0.00013698,2]
[383025656,1756818639203,-480.0,0.00013698,2]
[383025657,1756818639213,-480.0,0.00013698,2]
[383025658,1756818639223,-480.0,0.00013698,2]
[383025659,1756818639232,-480.0,0.00013698,2]
[383025660,1756818639243,-354.64051526,0.00013698,2]
[383025661,1756818639252,-559.81,0.00013698,2]
[383025662,1756818639261,-480.0,0.00013698,2]
[383025664,1756818639271,-480.0,0.00013698,2]
[383025665,1756818639280,-549.82,0.00013698,2]
[383025666,1756818639289,-480.0,0.00013698,2]
[383025667,1756818639299,-480.0,0.00013698,2]
[383025668,1756818639309,-480.0,0.00013698,2]
[383025669,1756818639319,-480.0,0.00013698,2]
[383025670,1756818639328,-480.0,0.00013698,2]
[383025671,1756818639337,-480.0,0.00013698,2]
[383025672,1756818639347,-480.0,0.00013698,2]
[383025673,1756818639356,-480.0,0.00013698,2]
[383025674,1756818639366,-256.53,0.00013698,2]
[383025675,1756818639375,-191.12,0.00013698,2]
[383025676,1756818639385,-480.0,0.00013698,2]
[383025677,1756818639394,-480.0,0.00013698,2]
[383025678,1756818639404,-480.0,0.00013698,2]
[383025679,1756818639413,-480.0,0.00013698,2]
[383025680,1756818639422,-480.0,0.00013698,2]
[383025681,1756818639431,-480.0,0.00013698,2]
[383025682,1756818639440,-480.0,0.00013698,2]
[383025683,1756818639450,-420.45558283,0.00013698,2]
[383025684,1756818639459,-480.0,0.00013698,2]
[383025685,1756818639468,-418.43470895,0.00013698,2]
[383025686,1756818639478,-480.0,0.00013698,2]
[383025687,1756818639487,-480.0,0.00013698,2]
[383025688,1756818639496,-480.0,0.00013698,2]
[383025689,1756818639506,-480.0,0.00013698,2]
[383025690,1756818639515,-761.14,0.00013698,2]
[383025691,1756818639525,-480.0,0.00013698,2]
[383025692,1756818639535,-177.44363035,0.00013698,2]
[383025693,1756818639544,-480.0,0.00013698,2]
[383025694,1756818639554,-480.0,0.00013698,2]
[383025695,1756818639564,-545.55,0.00013698,2]
[383025696,1756818639574,-480.0,0.00013698,2]
[383025697,1756818639583,-480.0,0.00013698,2]
[383025698,1756818639592,-480.0,0.00013698,2]
[383025699,1756818639601,-480.0,0.00013698,2]
[383025700,1756818639611,-221.91,0.00013698,2]
[383025701,1756818639620,-480.0,0.00013698,2]
[383025702,1756818639632,-480.0,0.00013698,2]
[383025703,1756818639643,-480.0,0.00013698,2]
[383025704,1756818639652,-480.0,0.00013698,2]
[383025705,1756818639662,-480.0,0.00013698,2]
[383025706,1756818639671,-480.0,0.00013698,2]
[383025707,1756818639681,-280.43,0.00013698,2]
[383025708,1756818639691,-480.0,0.00013698,2]
[383025709,1756818639701,-480.0,0.00013698,2]
[383025710,1756818639713,-480.0,0.00013698,2]
[383025711,1756818639723,-480.0,0.00013698,2]
[383025712,1756818639732,-151.0,0.00013698,2]
[383025713,1756818639742,-479.0,0.00013698,2]
[383025714,1756818639751,-480.0,0.00013698,2]
[383025715,1756818639760,-480.0,0.00013698,2]
[383025716,1756818639770,-480.0,0.00013698,2]
[383025717,1756818639779,-480.0,0.00013698,2]
[383025718,1756818639788,-314.58,0.00013698,2]
[383025719,1756818639798,-480.0,0.00013698,2]
[383025720,1756818639807,-480.0,0.00013698,2]
[383025721,1756818639817,-480.0,0.00013698,2]
[383025722,1756818639826,-518.5,0.00013698,2]
[383025723,1756818639835,-894.61,0.00013698,2]
[383025724,1756818639844,-222.62539052,0.00013698,2]
[383025858,1756818652323,256.0671539,0.00013697,2]
[383025859,1756818680284,199.42253667,0.00013598,2]
[383025861,1756818957310,174.49471963,0.00013598,2]
[383025862,1756819220059,209.40437684,0.0001369,2]
[383025863,1756819240272,152.68287965,0.00013598,2]
[383025868,1756819521338,152.68287961,0.00013598,2]
[383025871,1756819626138,-500.0,0.00013698,2]
[383025872,1756819626161,-482.55470195,0.00013698,2]
[383025873,1756819626187,-500.0,0.00013698,2]
[383025874,1756819626209,-183.36700241,0.00013698,2]
[383025876,1756819678904,6377.35524463,0.00013,2]
[383025877,1756819819181,152.68287961,0.00013598,2]
[383025920,1756819831855,-369.90546118,0.00013698,2]
[383025921,1756819831864,-500.0,0.00013698,2]
[383025923,1756819831874,-134.86373072,0.00013698,2]
[383025970,1756819837923,-365.13626928,0.00013698,2]
[383025971,1756819837933,-500.0,0.00013698,2]
[383025972,1756819837942,-217.16373072,0.00013698,2]
[383025973,1756819837953,-282.83626928,0.00013698,2]
[383025974,1756819837963,-61.44150072,0.00013698,2]
[383026323,1756819842940,-438.55849928,0.00013698,2]
[383026324,1756819842950,-480.0,0.00013698,2]
[383026325,1756819842959,-151.21201223,0.00013698,2]
[383026326,1756819842969,-371.54990092,0.00013698,2]
[383026327,1756819842978,-480.0,0.00013698,2]
[383026328,1756819842987,-422.73839063,0.00013698,2]
[383026330,1756819842997,-334.08,0.00013698,2]
[383026331,1756819843007,-480.0,0.00013698,2]
[383026332,1756819843016,-480.0,0.00013698,2]
[383026333,1756819843025,-480.0,0.00013698,2]
[383026334,1756819843035,-397.48,0.00013698,2]
[383026335,1756819843044,-531.16,0.00013698,2]
[383026336,1756819843053,-480.0,0.00013698,2]
[383026346,1756819843225,-480.0,0.00013698,2]
[383026349,1756819843235,-480.0,0.00013698,2]
[383026351,1756819843245,-303.98,0.00013698,2]
[383026352,1756819843255,-480.0,0.00013698,2]
[383026355,1756819843265,-480.0,0.00013698,2]
[383026356,1756819843275,-537.76489598,0.00013698,2]
[383026358,1756819843285,-480.0,0.00013698,2]
[383026360,1756819843294,-480.0,0.00013698,2]
[383026362,1756819843304,-480.0,0.00013698,2]
[383026364,1756819843315,-541.68,0.00013698,2]
[383026366,1756819843325,-480.0,0.00013698,2]
[383026368,1756819843335,-480.0,0.00013698,2]
[383026370,1756819843344,-480.0,0.00013698,2]
[383026373,1756819843357,-480.0,0.00013698,2]
[383026374,1756819843367,-509.27,0.00013698,2]
[383026377,1756819843378,-418.4,0.00013698,2]
[383026378,1756819843387,-480.0,0.00013698,2]
[383026380,1756819843398,-480.0,0.00013698,2]
[383026382,1756819843408,-611.89,0.00013698,2]
[383026384,1756819843418,-480.0,0.00013698,2]
[383026386,1756819843427,-480.0,0.00013698,2]
[383026388,1756819843436,-480.0,0.00013698,2]
[383026390,1756819843445,-480.0,0.00013698,2]
[383026392,1756819843453,-480.0,0.00013698,2]
[383026394,1756819843462,-480.0,0.00013698,2]
[383026396,1756819843471,-480.0,0.00013698,2]
[383026398,1756819843479,-480.0,0.00013698,2]
[383026400,1756819843488,-480.0,0.00013698,2]
[383026402,1756819843497,-480.0,0.00013698,2]
[383026404,1756819843506,-567.49,0.00013698,2]
[383026406,1756819843515,-480.0,0.00013698,2]
[383026408,1756819843523,-480.0,0.00013698,2]
[383026410,1756819843531,-480.0,0.00013698,2]
[383026412,1756819843540,-481.28446146,0.00013698,2]
[383026414,1756819843549,-569.19894493,0.00013698,2]
[383026416,1756819843558,-480.0,0.00013698,2]
[383026418,1756819843568,-480.0,0.00013698,2]
[383026420,1756819843577,-498.41,0.00013698,2]
[383026422,1756819843586,-480.0,0.00013698,2]
[383026424,1756819843595,-480.0,0.00013698,2]
[383026426,1756819843604,-480.0,0.00013698,2]
[383026428,1756819843614,-480.0,0.00013698,2]
[383026430,1756819843623,-480.0,0.00013698,2]
[383026432,1756819843632,-480.0,0.00013698,2]
[383026434,1756819843641,-480.0,0.00013698,2]
[383026435,1756819843652,-480.0,0.00013698,2]
[383026437,1756819843661,-480.0,0.00013698,2]
[383026439,1756819843671,-480.0,0.00013698,2]
[383026441,1756819843680,-480.0,0.00013698,2]
[383026443,1756819843690,-738.13,0.00013698,2]
[383026445,1756819843700,-480.0,0.00013698,2]
[383026447,1756819843709,-480.0,0.00013698,2]
[383026449,1756819843718,-480.0,0.00013698,2]
[383026451,1756819843727,-549.81,0.00013698,2]
[383026453,1756819843736,-480.0,0.00013698,2]
[383026455,1756819843746,-480.0,0.00013698,2]
[383026457,1756819843755,-480.0,0.00013698,2]
[383026459,1756819843765,-480.0,0.00013698,2]
[383026461,1756819843774,-683.6,0.00013698,2]
[383026463,1756819843784,-480.0,0.00013698,2]
[383026465,1756819843793,-480.0,0.00013698,2]
[383026467,1756819843803,-480.0,0.00013698,2]
[383026469,1756819843812,-480.0,0.00013698,2]
[383026471,1756819843821,-531.33,0.00013698,2]
[383026473,1756819843831,-480.0,0.00013698,2]
[383026475,1756819843840,-480.0,0.00013698,2]
[383026477,1756819843850,-480.0,0.00013698,2]
[383026479,1756819843859,-480.0,0.00013698,2]
[383026481,1756819843868,-505.2,0.00013698,2]
[383026483,1756819843878,-524.13,0.00013698,2]
[383026485,1756819843887,-480.0,0.00013698,2]
[383026487,1756819843897,-595.65,0.00013698,2]
[383026489,1756819843907,-480.0,0.00013698,2]
[383026491,1756819843916,-480.0,0.00013698,2]
[383026493,1756819843929,-1134.42,0.00013698,2]
[383026495,1756819843938,-480.0,0.00013698,2]
[383026497,1756819843947,-480.0,0.00013698,2]
[383026499,1756819843956,-480.0,0.00013698,2]
[383026500,1756819843967,-429.26510907,0.00013698,2]
[383026503,1756819843976,-480.0,0.00013698,2]
[383026504,1756819843985,-480.0,0.00013698,2]
[383026506,1756819843995,-480.0,0.00013698,2]
[383026509,1756819844007,-480.0,0.00013698,2]
[383026511,1756819844018,-480.0,0.00013698,2]
[383026513,1756819844027,-480.0,0.00013698,2]
[383026514,1756819844036,-480.0,0.00013698,2]
[383026516,1756819844046,-480.0,0.00013698,2]
[383026518,1756819844056,-370.03809599,0.00013698,2]
[383026520,1756819844065,-480.0,0.00013698,2]
[383026522,1756819844075,-729.42,0.00013698,2]
[383026524,1756819844085,-480.0,0.00013698,2]
[383026526,1756819844095,-480.0,0.00013698,2]
[383026528,1756819844104,-480.0,0.00013698,2]
[383026530,1756819844114,-256.56233844,0.00013698,2]
[383026543,1756819844232,-223.43766156,0.00013698,2]
[383026545,1756819844243,-320.33803681,0.00013698,2]
[383026551,1756819844335,-159.66196319,0.00013698,2]
[383026552,1756819844346,-257.55453681,0.00013698,2]
[383026753,1756820073520,152.68287961,0.00013598,2]
[383026754,1756820222352,155.0,0.00027397,120]
[383026755,1756820313982,566.53773224,0.00013697,2]
[383026756,1756820314526,500.0,0.00013697,2]
[383026757,1756820314569,500.0,0.00013697,2]
[383026758,1756820314623,500.0,0.00013697,2]
[383026759,1756820314667,500.0,0.00013697,2]
[383026760,1756820314716,500.0,0.00013697,2]
[383026761,1756820314775,287.78829136,0.00013697,2]
[383026762,1756820327165,152.68287961,0.00013598,2]
[383026763,1756820466830,800.0,0.0001357,2]
[383026764,1756820466897,800.0,0.00013446,2]
[383026765,1756820567517,152.68287961,0.00013598,2]
[383026766,1756820586841,800.0,0.000136,2]
[383026767,1756820586988,800.0,0.00013595,2]
[383026768,1756820587055,183.42672166,0.00013485,2]
[383026769,1756820706778,800.0,0.00013511,2]
[383026770,1756820831451,152.68287961,0.00013598,2]
[383026771,1756820840113,-480.0,0.00013698,2]
[383026772,1756820840136,-480.0,0.00013698,2]
[383026773,1756820840158,-490.82,0.00013698,2]
[383026774,1756820840180,-480.0,0.00013698,2]
[383026775,1756820840205,-173.36256661,0.00013698,2]
[383026852,1756821032279,-306.63743339,0.00013698,2]
[383026855,1756821032290,-148.109807,0.00013698,2]
[383026952,1756821038086,-331.890193,0.00013698,2]
[383026953,1756821038096,-480.0,0.00013698,2]
[383026954,1756821038108,-480.0,0.00013698,2]
[383026956,1756821038116,-480.0,0.00013698,2]
[383026957,1756821038125,-480.0,0.00013698,2]
[383026958,1756821038134,-225.08441772,0.00013698,2]
[383026959,1756821038142,-534.67,0.00013698,2]
[383026960,1756821038151,-1004.91316419,0.00013698,2]
[383026961,1756821038160,-480.0,0.00013698,2]
[383026962,1756821038168,-480.0,0.00013698,2]
[383026963,1756821038178,-514.59,0.00013698,2]
[383026964,1756821038187,-481.48518131,0.00013698,2]
[383026965,1756821038196,-480.0,0.00013698,2]
[383026966,1756821038205,-480.0,0.00013698,2]
[383026967,1756821038214,-480.0,0.00013698,2]
[383026968,1756821038223,-480.0,0.00013698,2]
[383026969,1756821038233,-480.0,0.00013698,2]
[383026970,1756821038242,-480.0,0.00013698,2]
[383026971,1756821038252,-482.29502428,0.00013698,2]
[383026972,1756821038261,-500.0,0.00013698,2]
[383026973,1756821038271,-500.0,0.00013698,2]
[383026974,1756821038281,-500.0,0.00013698,2]
[383026975,1756821038290,-480.0,0.00013698,2]
[383026976,1756821038300,-480.0,0.00013698,2]
[383026977,1756821038315,-480.0,0.00013698,2]
[383026978,1756821038324,-480.0,0.00013698,2]
[383026979,1756821038334,-480.0,0.00013698,2]
[383026980,1756821038344,-480.0,0.00013698,2]
[383026981,1756821038355,-480.0,0.00013698,2]
[383026982,1756821038367,-480.0,0.00013698,2]
[383026983,1756821038377,-173.13617814,0.00013698,2]
[383026984,1756821038388,-480.0,0.00013698,2]
[383026985,1756821038398,-480.0,0.00013698,2]
[383026986,1756821038407,-480.0,0.00013698,2]
[383026987,1756821038417,-480.0,0.00013698,2]